[Event "16th Deltalift Open 2019"]
[Site "Halmstad"]
[Date "2019.06.01"]
[Round "7.23"]
[White "Trost, Edvin"]
[Black "Troberg Eskola, Love"]
[Result "1/2-1/2"]
[ECO "C16"]
[WhiteElo "2047"]
[BlackElo "2134"]
[Annotator "ChessBase"]
[PlyCount "95"]
[EventDate "2019.05.30"]
[EventType "swiss"]
[EventCountry "SWE"]
[SourceTitle "playchess.com"]
[Source "ChessBase"]
[SourceQuality "1"]
[TimeControl "40/5400+30:1800+30"]

1. e4 {[%emt 0:01:30]} e6 {[%emt 0:00:00]} 2. d4 {[%emt 0:00:04]} d5 {[%emt 0:00:00]} 3. Nc3 {[%emt 0:01:31]} Bb4 {[%emt 0:00:00]} 4. e5 {[%emt 0:00:01]} Qd7 {[%emt 0:00:00]} 5. a3 {[%emt 0:00:32]} Bxc3+ {[%emt 0:00:00]} 6. bxc3 {[%emt 0:00:14]} b6 {[%emt 0:00:00]} 7. Nf3 {[%emt 0:06:19]} Ba6 {[%emt 0:00:06]} 8. Bxa6 {[%emt 0:02:22]} Nxa6 {[%emt 0:00:03]} 9. Qd3 {[%emt 0:00:10]} Qa4 {[%emt 0:00:28]} 10. Nd2 {[%emt 0:02:27]} Ne7 {[%emt 0:04:17]} 11. c4 {[%emt 0:01:22]} Rc8 {[%emt 0:00:45]} 12. c3 {[%emt 0:19:08]} c5 {[%emt 0:00:09]} 13. cxd5 {[%emt 0:02:01]} Nxd5 {[%emt 0:00:54]} 14. Bb2 {[%emt 0:03:07]} cxd4 {[%emt 0:03:39]} 15. cxd4 {[%emt 0:00:56]} O-O {[%emt 0:10:33]} 16. O-O {[%emt 0:02:29]} Rc2 {[%emt 0:00:46]} 17. Rab1 {[%emt 0:00:40]} Rfc8 {[%emt 0:01:35]} 18. Ne4 {[%emt 0:01:10]} h6 {[%emt 0:04:36]} 19. Qg3 {[%emt 0:08:21]} Kh8 {[%emt 0:04:41]} 20. Nd6 {[%emt 0:08:11]} R8c7 {[%emt 0:00:20]} 21. Qf3 {[%emt 0:03:21]} Kg8 {[%emt 0:00:54]} 22. h4 {[%emt 0:03:26]} Qc6 {[%emt 0:02:10]} 23. Rbc1 {[%emt 0:02:01]} Rd7 {[%emt 0:04:50]} 24. g3 {[%emt 0:03:15]} Nb8 {[%emt 0:03:21]} 25. Ne4 {[%emt 0:02:43]} Rc7 {[%emt 0:01:35]} 26. h5 {[%emt 0:00:43]} Qb5 {[%emt 0:10:41]} 27. Rxc2 {[%emt 0:04:13]} Rxc2 {[%emt 0:00:14]} 28. Ba1 {[%emt 0:01:39]} Qe2 {[%emt 0:04:46]} 29. Qxe2 {[%emt 0:02:26]} Rxe2 {[%emt 0:00:07]} 30. Nc3 {[%emt 0:01:52]} Nxc3 {[%emt 0:01:00]} 31. Bxc3 {[%emt 0:00:01]} Rc2 {[%emt 0:01:54]} 32. Bb4 {[%emt 0:00:30]} Nc6 {[%emt 0:00:32]} 33. Rd1 {[%emt 0:00:58]} Rc4 {[%emt 0:07:54]} 34. d5 {[%emt 0:00:46]} Nxe5 {[%emt 0:01:44]} 35. dxe6 {[%emt 0:00:03]} fxe6 {[%emt 0:00:38]} 36. Rd8+ {[%emt 0:00:01]} Kh7 {[%emt 0:00:20]} 37. Bf8 {[%emt 0:02:04]} Rc7 {[%emt 0:12:32]} 38. Re8 {[%emt 0:03:54]} Nd7 {[%emt 0:03:39]} 39. Bd6 {[%emt 0:01:42]} Rc6 {[%emt 0:00:33]} 40. Be7 {[%emt 0:05:07]} e5 {[%emt 0:01:02]} 41. Rd8 {[%emt 0:31:33]} Nc5 {[%emt 0:32:51]} 42. Rd5 {[%emt 0:01:25]} Rc7 {[%emt 0:01:53]} 43. Rxe5 {[%emt 0:00:26]} Nd3 {[%emt 0:02:09]} 44. Re3 {[%emt 0:00:10]} Rc1+ {[%emt 0:00:44]} 45. Kg2 {[%emt 0:00:19]} Rd1 {[%emt 0:01:00]} 46. Kf3 {[%emt 0:00:40]} Rd2 {[%emt 0:04:38]} 47. Re2 {[%emt 0:00:12]} Rd1 {[%emt 0:00:18]} 48. Re3 {[%emt 0:01:22]} 1/2-1/2

[Event "16th Deltalift Open 2019"]
[Site "Halmstad"]
[Date "2019.06.01"]
[Round "7.24"]
[White "Ytterberg, Felix"]
[Black "Svensson, Mikael"]
[Result "0-1"]
[ECO "A84"]
[WhiteElo "2018"]
[BlackElo "2125"]
[Annotator "ChessBase"]
[PlyCount "122"]
[EventDate "2019.05.30"]
[EventType "swiss"]
[EventCountry "SWE"]
[SourceTitle "playchess.com"]
[Source "ChessBase"]
[SourceQuality "1"]
[TimeControl "40/5400+30:1800+30"]

1. d4 {[%emt 0:01:10]} e6 {[%emt 0:00:00]} 2. c4 {[%emt 0:01:16]} f5 {[%emt 0:00:00]} 3. Nc3 {[%emt 0:00:55]} Nf6 {[%emt 0:00:00]} 4. Qc2 {[%emt 0:00:17]} b6 {[%emt 0:00:03]} 5. e3 {[%emt 0:00:12]} Bb7 {[%emt 0:00:07]} 6. f3 {[%emt 0:00:15]} c5 {[%emt 0:00:06]} 7. Bd3 {[%emt 0:00:15]} Nc6 {[%emt 0:00:09]} 8. Nge2 {[%emt 0:00:09]} Nb4 {[%emt 0:00:14]} 9. Qb1 {[%emt 0:00:06]} Nxd3+ {[%emt 0:01:10]} 10. Qxd3 {[%emt 0:00:22]} Be7 {[%emt 0:01:20]} 11. d5 {[%emt 0:00:59]} Nh5 {[%emt 0:14:28]} 12. O-O {[%emt 0:02:00]} g6 {[%emt 0:04:15]} 13. d6 {[%emt 0:05:48]} Bf6 {[%emt 0:00:14]} 14. g4 {[%emt 0:01:48]} Ng7 {[%emt 0:01:08]} 15. f4 {[%emt 0:04:02]} fxg4 {[%emt 0:13:07]} 16. e4 {[%emt 0:05:12]} O-O {[%emt 0:03:29]} 17. Be3 {[%emt 0:02:34]} Bh4 {[%emt 0:07:32]} 18. a3 {[%emt 0:02:15]} Qc8 {[%emt 0:13:36]} 19. b4 {[%emt 0:11:58]} Nf5 {[%emt 0:16:43]} 20. exf5 {[%emt 0:11:04]} Qc6 {[%emt 0:00:10]} 21. Nd5 {[%emt 0:00:13]} exd5 {[%emt 0:01:01]} 22. Qxd5+ {[%emt 0:02:26]} Qxd5 {[%emt 0:00:07]} 23. cxd5 {[%emt 0:00:15]} Ba6 {[%emt 0:05:59]} 24. bxc5 {[%emt 0:05:07]} bxc5 {[%emt 0:00:10]} 25. fxg6 {[%emt 0:00:31]} hxg6 {[%emt 0:01:42]} 26. Nc3 {[%emt 0:00:24]} Bxf1 {[%emt 0:00:13]} 27. Rxf1 {[%emt 0:00:26]} Bf6 {[%emt 0:03:49]} 28. Ne4 {[%emt 0:00:41]} Bd4 {[%emt 0:00:19]} 29. Bxd4 {[%emt 0:01:24]} cxd4 {[%emt 0:00:06]} 30. Nc5 {[%emt 0:01:22]} Rf5 {[%emt 0:01:08]} 31. Nxd7 {[%emt 0:00:40]} Rd8 {[%emt 0:00:08]} 32. Ne5 {[%emt 0:00:39]} Rxd6 {[%emt 0:00:09]} 33. Nxg4 {[%emt 0:00:12]} Rfxd5 {[%emt 0:00:40]} 34. Nf2 {[%emt 0:03:53]} Ra6 {[%emt 0:01:51]} 35. Ne4 {[%emt 0:00:48]} Kg7 {[%emt 0:00:54]} 36. Rf3 {[%emt 0:01:16]} Re6 {[%emt 0:02:18]} 37. Nd2 {[%emt 0:00:56]} Re2 {[%emt 0:03:05]} 38. Rf2 {[%emt 0:01:39]} Re3 {[%emt 0:01:22]} 39. Rf3 {[%emt 0:01:43]} Rxf3 {[%emt 0:00:53]} 40. Nxf3 {[%emt 0:00:12]} d3 {[%emt 0:00:06]} 41. Nd2 {[%emt 0:30:10]} Ra5 {[%emt 0:30:18]} 42. Kf2 {[%emt 0:00:54]} Rxa3 {[%emt 0:00:10]} 43. Ke3 {[%emt 0:00:11]} Ra2 {[%emt 0:03:10]} 44. Nf3 {[%emt 0:01:00]} Kf6 {[%emt 0:00:59]} 45. h3 {[%emt 0:00:29]} Rb2 {[%emt 0:01:58]} 46. Nd4 {[%emt 0:02:29]} d2 {[%emt 0:01:09]} 47. Ke2 {[%emt 0:00:35]} Rb7 {[%emt 0:01:00]} 48. Kxd2 {[%emt 0:00:43]} Rd7 {[%emt 0:00:07]} 49. Ke3 {[%emt 0:00:14]} Rxd4 {[%emt 0:00:09]} 50. Kxd4 {[%emt 0:00:16]} Kf5 {[%emt 0:00:07]} 51. Ke3 {[%emt 0:00:35]} a6 {[%emt 0:00:52]} 52. Kf3 {[%emt 0:00:10]} a5 {[%emt 0:00:05]} 53. Ke3 {[%emt 0:00:08]} a4 {[%emt 0:00:07]} 54. Kd3 {[%emt 0:02:13]} Kxf4 {[%emt 0:00:05]} 55. Kc3 {[%emt 0:00:16]} Kg3 {[%emt 0:00:10]} 56. Kb4 {[%emt 0:00:15]} Kxh3 {[%emt 0:00:05]} 57. Kxa4 {[%emt 0:00:12]} g5 {[%emt 0:00:05]} 58. Kb3 {[%emt 0:00:15]} g4 {[%emt 0:00:04]} 59. Kc2 {[%emt 0:00:17]} g3 {[%emt 0:00:03]} 60. Kd2 {[%emt 0:00:15]} g2 {[%emt 0:00:05]} 61. Ke2 {[%emt 0:00:11]} g1=Q {[%emt 0:00:08]} 0-1

[Event "16th Deltalift Open 2019"]
[Site "Halmstad"]
[Date "2019.06.01"]
[Round "8.2"]
[White "Lindberg, Bengt"]
[Black "Seo, Jung Min"]
[Result "1/2-1/2"]
[ECO "B92"]
[WhiteElo "2382"]
[BlackElo "2377"]
[Annotator "ChessBase"]
[PlyCount "172"]
[EventDate "2019.05.30"]
[EventType "swiss"]
[EventCountry "SWE"]
[SourceTitle "playchess.com"]
[Source "ChessBase"]
[SourceQuality "1"]
[TimeControl "40/5400+30:1800+30"]

1. e4 {[%emt 0:00:00]} c5 {[%emt 0:00:00]} 2. Nf3 {[%emt 0:00:00]} d6 {[%emt 0:00:16]} 3. d4 {[%emt 0:00:00]} cxd4 {[%emt 0:00:05]} 4. Nxd4 {[%emt 0:00:00]} Nf6 {[%emt 0:00:04]} 5. Nc3 {[%emt 0:00:03]} a6 {[%emt 0:00:05]} 6. Be2 {[%emt 0:01:21]} e5 {[%emt 0:04:48]} 7. Nb3 {[%emt 0:00:08]} Be6 {[%emt 0:00:43]} 8. Be3 {[%emt 0:02:19]} Be7 {[%emt 0:01:10]} 9. Nd5 {[%emt 0:01:35]} Nxd5 {[%emt 0:04:35]} 10. exd5 {[%emt 0:00:07]} Bf5 {[%emt 0:00:07]} 11. O-O {[%emt 0:01:49]} Nd7 {[%emt 0:00:31]} 12. Qd2 {[%emt 0:12:27]} Qc7 {[%emt 0:01:58]} 13. c4 {[%emt 0:00:50]} a5 {[%emt 0:01:10]} 14. f4 {[%emt 0:12:29]} a4 {[%emt 0:06:09]} 15. fxe5 {[%emt 0:00:28]} axb3 {[%emt 0:00:04]} 16. Rxf5 {[%emt 0:00:07]} Rxa2 {[%emt 0:06:50]} 17. Raf1 {[%emt 0:00:13]} Nxe5 {[%emt 0:00:12]} 18. c5 Qa5 {[%emt 0:35:41]} 19. Rxe5 {[%emt 0:07:36]} dxe5 {[%emt 0:01:13]} 20. d6 {[%emt 0:00:04]} Qxd2 {[%emt 0:07:43]} 21. Bb5+ {[%emt 0:00:17]} Kf8 {[%emt 0:00:18]} 22. dxe7+ {[%emt 0:00:23]} Kxe7 {[%emt 0:00:02]} 23. Bxd2 {[%emt 0:00:07]} Rxb2 {[%emt 0:06:48]} 24. Bb4 {[%emt 0:09:31]} Kd8 {[%emt 0:02:18]} 25. Bc3 {[%emt 0:13:21]} Rc2 {[%emt 0:04:56]} 26. Bxe5 {[%emt 0:00:08]} Kc8 {[%emt 0:01:17]} 27. Bd3 {[%emt 0:02:35]} Rd2 {[%emt 0:02:42]} 28. Bf5+ {[%emt 0:08:19]} Kd8 {[%emt 0:00:01]} 29. Bc3 {[%emt 0:11:37]} Rd5 {[%emt 0:02:26]} 30. Ba5+ {[%emt 0:00:36]} Ke7 {[%emt 0:01:53]} 31. Be4 {[%emt 0:01:15]} Rxc5 {[%emt 0:05:02]} 32. Bb4 {[%emt 0:00:05]} b6 {[%emt 0:00:02]} 33. Rb1 {[%emt 0:02:50]} Kd6 {[%emt 0:01:42]} 34. Rxb3 {[%emt 0:02:04]} Ke5 {[%emt 0:00:03]} 35. Bxc5 {[%emt 0:00:37]} bxc5 {[%emt 0:00:00]} 36. Bb1 {[%emt 0:03:55]} f5 {[%emt 0:01:24]} 37. Kf2 {[%emt 0:02:08]} g5 {[%emt 0:00:58]} 38. Rb5 {[%emt 0:05:07]} Rc8 {[%emt 0:00:10]} 39. Rb7 {[%emt 0:00:21]} Rd8 {[%emt 0:02:10]} 40. Ke2 {[%emt 0:00:46]} h6 {[%emt 0:00:55]} 41. Re7+ {[%emt 0:32:03]} Kf6 {[%emt 0:30:26]} 42. Rc7 {[%emt 0:00:00]} Rd5 {[%emt 0:00:00]} 43. Rc6+ {[%emt 0:00:00]} Kg7 {[%emt 0:00:00]} 44. Ba2 {[%emt 0:00:00]} Re5+ {[%emt 0:00:00]} 45. Kf2 {[%emt 0:00:00]} h5 {[%emt 0:00:00]} 46. h4 {[%emt 0:00:00]} gxh4 {[%emt 0:00:00]} 47. Kf3 {[%emt 0:00:00]} Re4 {[%emt 0:00:00]} 48. Bb1 {[%emt 0:00:00]} Re5 {[%emt 0:00:00]} 49. Bd3 {[%emt 0:00:00]} Rd5 {[%emt 0:00:00]} 50. Be2 {[%emt 0:00:00]} Rd4 {[%emt 0:00:00]} 51. Kf2 {[%emt 0:00:00]} h3 {[%emt 0:00:00]} 52. gxh3 {[%emt 0:00:00]} h4 {[%emt 0:00:00]} 53. Rxc5 Kf6 54. Ke3 {[%emt 0:00:00]} Re4+ {[%emt 0:00:00]} 55. Kf3 {[%emt 0:00:09]} Rd4 56. Ba6 {[%emt 0:00:30]} Rd1 {[%emt 0:00:00]} 57. Bc8 {[%emt 0:03:25]} Rf1+ {[%emt 0:00:00]} 58. Ke2 {[%emt 0:00:29]} Rf4 {[%emt 0:00:00]} 59. Bd7 {[%emt 0:01:01]} Kg5 {[%emt 0:00:00]} 60. Ke3 {[%emt 0:03:10]} Rf1 {[%emt 0:00:00]} 61. Bc6 {[%emt 0:00:29]} Rg1 {[%emt 0:00:00]} 62. Kf2 {[%emt 0:00:33]} Rg3 {[%emt 0:00:00]} 63. Bg2 {[%emt 0:00:24]} Kf4 {[%emt 0:00:00]} 64. Rb5 {[%emt 0:00:54]} Kg5 {[%emt 0:00:00]} 65. Be4 {[%emt 0:00:20]} Rxh3 {[%emt 0:00:00]} 66. Bxf5 {[%emt 0:00:29]} Rg3 {[%emt 0:00:00]} 67. Bd3+ {[%emt 0:00:24]} Kf6 {[%emt 0:00:00]} 68. Be2 {[%emt 0:00:10]} Rh3 {[%emt 0:00:00]} 69. Bf3 {[%emt 0:00:43]} Kg6 {[%emt 0:00:00]} 70. Ke3 {[%emt 0:00:08]} Rh2 {[%emt 0:00:00]} 71. Kf4 {[%emt 0:00:04]} h3 {[%emt 0:00:00]} 72. Rb6+ {[%emt 0:00:04]} Kf7 {[%emt 0:00:00]} 73. Ke5 {[%emt 0:00:35]} Rf2 {[%emt 0:00:00]} 74. Be4 {[%emt 0:01:28]} h2 {[%emt 0:00:00]} 75. Rh6 {[%emt 0:00:32]} Kg7 {[%emt 0:00:00]} 76. Rh7+ {[%emt 0:01:25]} Kg8 {[%emt 0:00:00]} 77. Ra7 {[%emt 0:00:26]} Rf1 {[%emt 0:00:00]} 78. Ra8+ {[%emt 0:00:28]} Kg7 {[%emt 0:00:00]} 79. Ra7+ {[%emt 0:00:07]} Kg8 {[%emt 0:00:00]} 80. Ra8+ {[%emt 0:00:09]} Kg7 {[%emt 0:00:00]} 81. Ra7+ {[%emt 0:00:08]} Kg8 {[%emt 0:00:00]} 82. Bd5+ {[%emt 0:00:45]} Kh8 {[%emt 0:00:00]} 83. Ra8+ {[%emt 0:00:17]} Kg7 {[%emt 0:00:12]} 84. Ra7+ {[%emt 0:00:22]} Kh8 {[%emt 0:00:06]} 85. Ra8+ {[%emt 0:00:06]} Kg7 {[%emt 0:00:05]} 86. Ra7+ {[%emt 0:00:05]} Kh8 {[%emt 0:00:04]} 1/2-1/2

[Event "16th Deltalift Open 2019"]
[Site "Halmstad"]
[Date "2019.06.01"]
[Round "8.3"]
[White "Hector, Jonny"]
[Black "Sjodahl, Pontus"]
[Result "1/2-1/2"]
[ECO "C15"]
[WhiteElo "2488"]
[BlackElo "2435"]
[Annotator "ChessBase"]
[PlyCount "219"]
[EventDate "2019.05.30"]
[EventType "swiss"]
[EventCountry "SWE"]
[SourceTitle "playchess.com"]
[Source "ChessBase"]
[SourceQuality "1"]
[TimeControl "40/5400+30:1800+30"]

1. e4 {[%emt 0:00:16]} e6 {[%emt 0:00:00]} 2. d4 {[%emt 0:00:30]} d5 {[%emt 0:00:00]} 3. Nc3 {[%emt 0:00:17]} Bb4 {[%emt 0:00:16]} 4. Nge2 {[%emt 0:00:26]} Ne7 {[%emt 0:03:58]} 5. a3 {[%emt 0:01:39]} Ba5 {[%emt 0:00:22]} 6. g3 {[%emt 0:09:47]} O-O {[%emt 0:13:49]} 7. Bg2 {[%emt 0:00:49]} c6 {[%emt 0:08:50]} 8. O-O {[%emt 0:00:55]} Nd7 {[%emt 0:04:15]} 9. Re1 {[%emt 0:12:15]} Re8 {[%emt 0:05:20]} 10. b4 {[%emt 0:04:20]} Bc7 {[%emt 0:00:30]} 11. a4 {[%emt 0:01:04]} a5 {[%emt 0:08:39]} 12. b5 {[%emt 0:00:30]} Bd6 {[%emt 0:04:48]} 13. Bf4 {[%emt 0:03:51]} Bb4 {[%emt 0:03:41]} 14. Rf1 {[%emt 0:00:16]} Ng6 {[%emt 0:00:54]} 15. Be3 {[%emt 0:01:05]} Nb6 {[%emt 0:01:25]} 16. h4 {[%emt 0:01:42]} Nc4 {[%emt 0:02:00]} 17. Bg5 {[%emt 0:04:21]} f6 {[%emt 0:02:28]} 18. Bc1 {[%emt 0:00:42]} Nh8 {[%emt 0:01:25]} 19. Rb1 {[%emt 0:07:02]} Nf7 {[%emt 0:03:14]} 20. Qd3 {[%emt 0:01:29]} Nb6 {[%emt 0:08:15]} 21. Ra1 {[%emt 0:05:13]} Bd7 {[%emt 0:02:31]} 22. Nd1 {[%emt 0:01:58]} Bf8 {[%emt 0:01:50]} 23. Ne3 {[%emt 0:01:31]} Nd6 {[%emt 0:01:36]} 24. Ba3 {[%emt 0:07:51]} dxe4 {[%emt 0:06:26]} 25. Qb3 {[%emt 0:01:17]} cxb5 {[%emt 0:01:24]} 26. Bxd6 {[%emt 0:00:30]} Bxd6 {[%emt 0:01:23]} 27. axb5 {[%emt 0:00:29]} a4 {[%emt 0:00:50]} 28. Qa2 {[%emt 0:01:36]} Bxb5 {[%emt 0:05:01]} 29. c4 {[%emt 0:00:30]} Nxc4 {[%emt 0:03:44]} 30. Nxc4 {[%emt 0:00:12]} f5 {[%emt 0:00:33]} 31. Rab1 {[%emt 0:10:53]} Bc6 {[%emt 0:00:44]} 32. Nc3 {[%emt 0:01:37]} Bc7 {[%emt 0:02:06]} 33. Rfd1 {[%emt 0:00:54]} Kh8 {[%emt 0:01:25]} 34. Qa3 {[%emt 0:04:48]} Qf6 {[%emt 0:01:11]} 35. Nb5 {[%emt 0:00:46]} Bb8 {[%emt 0:00:39]} 36. Nbd6 {[%emt 0:02:34]} Bxd6 {[%emt 0:00:20]} 37. Qxd6 {[%emt 0:03:10]} Red8 {[%emt 0:00:57]} 38. Qc5 {[%emt 0:03:06]} Rd5 {[%emt 0:00:48]} 39. Qb6 {[%emt 0:00:30]} Qd8 {[%emt 0:01:14]} 40. Qxd8+ {[%emt 0:02:46]} Raxd8 {[%emt 0:00:16]} 41. Ne5 {[%emt 0:31:33]} Be8 {[%emt 0:02:05]} 42. Bf1 {[%emt 0:00:00]} Bh5 {[%emt 0:06:48]} 43. Rdc1 {[%emt 0:00:00]} Rxd4 {[%emt 0:05:05]} 44. Rxb7 {[%emt 0:00:00]} R4d5 {[%emt 0:06:13]} 45. Nf7+ {[%emt 0:00:00]} Bxf7 {[%emt 0:00:30]} 46. Rxf7 {[%emt 0:00:00]} Ra5 {[%emt 0:00:30]} 47. Rcc7 {[%emt 0:00:00]} a3 {[%emt 0:00:30]} 48. Ra7 {[%emt 0:00:00]} Rxa7 {[%emt 0:00:30]} 49. Rxa7 {[%emt 0:00:00]} Kg8 {[%emt 0:00:30]} 50. Bc4 {[%emt 0:00:00]} Rd6 {[%emt 0:00:30]} 51. Kf1 {[%emt 0:00:00]} Rb6 {[%emt 0:10:11]} 52. Ba2 {[%emt 0:00:00]} Kf8 {[%emt 0:00:29]} 53. h5 {[%emt 0:00:00]} Ke8 {[%emt 0:00:30]} 54. Rxa3 {[%emt 0:00:00]} Kf7 {[%emt 0:00:18]} 55. Ra7+ {[%emt 0:00:00]} Kf6 {[%emt 0:00:54]} 56. Ke2 {[%emt 0:00:00]} Rc6 {[%emt 0:00:30]} 57. Kd2 {[%emt 0:00:13]} h6 {[%emt 0:00:26]} 58. Bb3 {[%emt 0:00:20]} Rd6+ {[%emt 0:01:06]} 59. Ke2 {[%emt 0:00:11]} Rb6 {[%emt 0:00:32]} 60. Bc4 {[%emt 0:00:10]} Rb4 {[%emt 0:00:23]} 61. Rc7 {[%emt 0:02:01]} Rb6 {[%emt 0:00:11]} 62. Ke3 {[%emt 0:00:36]} g6 {[%emt 0:01:52]} 63. hxg6 {[%emt 0:01:48]} Kxg6 {[%emt 0:00:06]} 64. Kf4 {[%emt 0:02:13]} Rb2 {[%emt 0:00:37]} 65. Ke3 {[%emt 0:01:20]} Rb6 {[%emt 0:00:26]} 66. Re7 {[%emt 0:00:34]} Kf6 {[%emt 0:00:14]} 67. Re8 {[%emt 0:00:20]} Kf7 {[%emt 0:00:31]} 68. Ra8 {[%emt 0:01:27]} Kf6 {[%emt 0:01:05]} 69. Rc8 {[%emt 0:01:20]} Rd6 {[%emt 0:00:31]} 70. Be2 {[%emt 0:02:37]} Rb6 {[%emt 0:00:26]} 71. Bh5 {[%emt 0:00:29]} Rb3+ {[%emt 0:00:20]} 72. Ke2 {[%emt 0:00:27]} Rb2+ {[%emt 0:00:32]} 73. Kf1 {[%emt 0:00:39]} Rb1+ {[%emt 0:00:11]} 74. Kg2 {[%emt 0:00:02]} Rb2 {[%emt 0:00:13]} 75. Rc3 {[%emt 0:00:06]} Kg5 {[%emt 0:00:40]} 76. Bd1 {[%emt 0:00:14]} Rd2 {[%emt 0:00:26]} 77. Bb3 {[%emt 0:00:53]} Rd6 {[%emt 0:00:48]} 78. Kf1 {[%emt 0:01:25]} Kf6 {[%emt 0:00:18]} 79. Ke2 {[%emt 0:00:11]} Kg5 {[%emt 0:00:21]} 80. Rc8 {[%emt 0:00:40]} Kf6 {[%emt 0:00:13]} 81. Rc7 {[%emt 0:00:25]} Ra6 {[%emt 0:00:27]} 82. Rb7 {[%emt 0:00:20]} Rd6 {[%emt 0:00:12]} 83. Ba4 {[%emt 0:00:11]} Ra6 {[%emt 0:00:20]} 84. Rb4 {[%emt 0:01:51]} Rd6 {[%emt 0:00:16]} 85. g4 {[%emt 0:00:38]} Kg5 {[%emt 0:01:03]} 86. gxf5 {[%emt 0:00:32]} exf5 {[%emt 0:00:05]} 87. Rb8 {[%emt 0:01:07]} Rd5 {[%emt 0:01:27]} 88. Rg8+ {[%emt 0:00:49]} Kf6 {[%emt 0:00:23]} 89. Be8 {[%emt 0:00:19]} Ke5 {[%emt 0:00:43]} 90. Bf7 {[%emt 0:00:26]} Rd7 {[%emt 0:00:35]} 91. Re8+ {[%emt 0:00:41]} Kf6 {[%emt 0:00:31]} 92. Bc4 {[%emt 0:00:17]} Rc7 {[%emt 0:00:34]} 93. Re6+ {[%emt 0:00:18]} Kg5 {[%emt 0:00:10]} 94. Bb5 {[%emt 0:00:31]} h5 {[%emt 0:00:42]} 95. Be8 {[%emt 0:00:30]} h4 {[%emt 0:00:23]} 96. Rg6+ {[%emt 0:00:29]} Kf4 {[%emt 0:00:05]} 97. Rh6 {[%emt 0:00:20]} Kg5 {[%emt 0:00:21]} 98. Rh8 {[%emt 0:00:54]} Rc8 {[%emt 0:00:43]} 99. Ke3 {[%emt 0:00:48]} Rc3+ {[%emt 0:00:50]} 100. Ke2 {[%emt 0:00:32]} Rc8 {[%emt 0:00:24]} 101. Ke3 {[%emt 0:00:05]} Rc3+ {[%emt 0:00:04]} 102. Kd4 {[%emt 0:00:52]} Rc2 {[%emt 0:00:08]} 103. Ke5 {[%emt 0:00:15]} Kg4 {[%emt 0:01:05]} 104. Bh5+ {[%emt 0:00:49]} Kg5 {[%emt 0:01:26]} 105. Bd1 {[%emt 0:00:08]} Rc5+ {[%emt 0:00:04]} 106. Kd4 {[%emt 0:00:11]} Rc1 {[%emt 0:00:24]} 107. Be2 {[%emt 0:00:45]} Rc2 {[%emt 0:00:10]} 108. Ke3 {[%emt 0:00:46]} f4+ {[%emt 0:00:07]} 109. Kxe4 {[%emt 0:00:19]} Rxe2+ {[%emt 0:00:07]} 110. Kf3 {[%emt 0:00:03]} 1/2-1/2

[Event "16th Deltalift Open 2019"]
[Site "Halmstad"]
[Date "2019.06.01"]
[Round "8.4"]
[White "Kucuksari, Kaan"]
[Black "Brynell, Stellan"]
[Result "1/2-1/2"]
[ECO "A40"]
[WhiteElo "2320"]
[BlackElo "2406"]
[Annotator "ChessBase"]
[PlyCount "74"]
[EventDate "2019.05.30"]
[EventType "swiss"]
[EventCountry "SWE"]
[SourceTitle "playchess.com"]
[Source "ChessBase"]
[SourceQuality "1"]
[TimeControl "40/5400+30:1800+30"]

1. d4 {[%emt 0:00:00]} e6 {[%emt 0:00:00]} 2. Nf3 {[%emt 0:00:00]} c5 {[%emt 0:00:01]} 3. c3 {[%emt 0:00:00]} Nf6 {[%emt 0:00:21]} 4. Nbd2 {[%emt 0:00:00]} d5 {[%emt 0:00:47]} 5. e3 {[%emt 0:00:00]} Nc6 {[%emt 0:00:24]} 6. Bd3 {[%emt 0:00:07]} Bd6 {[%emt 0:00:20]} 7. O-O {[%emt 0:00:09]} O-O {[%emt 0:00:06]} 8. dxc5 {[%emt 0:00:07]} Bxc5 {[%emt 0:00:04]} 9. e4 {[%emt 0:00:05]} Qc7 {[%emt 0:03:41]} 10. exd5 {[%emt 0:00:09]} exd5 {[%emt 0:00:17]} 11. Nb3 {[%emt 0:00:03]} Bb6 {[%emt 0:01:27]} 12. Nbd4 {[%emt 0:00:05]} Bg4 {[%emt 0:02:22]} 13. Qa4 {[%emt 0:00:03]} Rfe8 {[%emt 0:04:36]} 14. Nxc6 {[%emt 0:06:34]} Bxf3 {[%emt 0:12:30]} 15. gxf3 {[%emt 0:02:10]} bxc6 {[%emt 0:01:34]} 16. Qh4 {[%emt 0:01:40]} Qe5 {[%emt 0:04:41]} 17. Bf4 {[%emt 0:02:31]} Qh5 {[%emt 0:00:09]} 18. Qg3 {[%emt 0:00:34]} Nd7 {[%emt 0:05:12]} 19. Rae1 {[%emt 0:18:39]} f6 {[%emt 0:03:49]} 20. Qg4 {[%emt 0:02:53]} Qxg4+ {[%emt 0:04:52]} 21. fxg4 {[%emt 0:00:02]} Ne5 {[%emt 0:00:17]} 22. Be2 {[%emt 0:00:41]} Re7 {[%emt 0:00:39]} 23. Bxe5 {[%emt 0:01:32]} fxe5 {[%emt 0:07:51]} 24. Kg2 {[%emt 0:00:15]} Rf8 {[%emt 0:00:18]} 25. f3 {[%emt 0:01:02]} Rf4 {[%emt 0:00:48]} 26. Bd1 {[%emt 0:01:01]} g6 {[%emt 0:02:10]} 27. b4 {[%emt 0:04:37]} Rc4 {[%emt 0:02:15]} 28. Bb3 {[%emt 0:01:39]} Rxc3 {[%emt 0:00:10]} 29. Rc1 {[%emt 0:00:07]} Bd4 {[%emt 0:01:46]} 30. Rxc3 {[%emt 0:07:41]} Bxc3 {[%emt 0:00:08]} 31. Rc1 {[%emt 0:00:04]} Bxb4 {[%emt 0:00:28]} 32. Rxc6 {[%emt 0:00:02]} Rd7 {[%emt 0:00:52]} 33. Re6 {[%emt 0:22:16]} Bc3 {[%emt 0:06:40]} 34. Ba4 {[%emt 0:00:01]} Rb7 {[%emt 0:04:52]} 35. Bb3 {[%emt 0:00:15]} Rd7 {[%emt 0:02:18]} 36. Ba4 {[%emt 0:00:11]} Rb7 {[%emt 0:03:15]} 37. Bb3 {[%emt 0:00:10]} Rd7 {[%emt 0:00:20]} 1/2-1/2